[Event "*** Titled Tuesday Blitz"]
[Site "Chess.com"]
[Date "2020.05.19"]
[Round "7"]
[White "MikeSailer"]
[Black "ljuks68"]
[Result "1-0"]
[WhiteElo "2084"]
[BlackElo "2330"]
[TimeControl "180+1"]
[EndTime "13:21:55 PDT"]
[Termination "MikeSailer won by resignation"]

1. d4 {[%clk 0:03:00.8]} 1... d5 {[%clk 0:01:36.2]} 2. Bf4 {[%clk 0:02:58.3]}
2... Nf6 {[%clk 0:01:35.9]} 3. e3 {[%clk 0:02:59]} 3... c5 {[%clk 0:01:35.8]} 4.
Nf3 {[%clk 0:02:59.5]} 4... Nc6 {[%clk 0:01:35.8]} 5. Nbd2 {[%clk 0:02:59.8]}
5... Bf5 {[%clk 0:01:34.5]} 6. Bd3 {[%clk 0:02:59.5]} 6... Bxd3 {[%clk
0:01:31.9]} 7. cxd3 {[%clk 0:02:59.6]} 7... cxd4 {[%clk 0:01:32.1]} 8. exd4
{[%clk 0:02:59.6]} 8... e6 {[%clk 0:01:31.8]} 9. O-O {[%clk 0:02:59.8]} 9... Bd6
{[%clk 0:01:30.5]} 10. Ne5 {[%clk 0:03:00.4]} 10... O-O {[%clk 0:01:28.2]} 11.
Re1 {[%clk 0:02:52.9]} 11... Nxd4 {[%clk 0:01:27.1]} 12. Rc1 {[%clk 0:02:38.9]}
12... Nf5 {[%clk 0:01:10]} 13. h3 {[%clk 0:02:30.6]} 13... Rc8 {[%clk
0:00:59.9]} 14. Rxc8 {[%clk 0:02:26.5]} 14... Qxc8 {[%clk 0:00:59.8]} 15. Ndf3
{[%clk 0:02:16.8]} 15... Qc7 {[%clk 0:00:55.3]} 16. Qd2 {[%clk 0:02:11.5]} 16...
Nh5 {[%clk 0:00:50.3]} 17. Rc1 {[%clk 0:02:05.9]} 17... Qe7 {[%clk 0:00:48.5]}
18. Bh2 {[%clk 0:02:00]} 18... f6 {[%clk 0:00:46.6]} 19. Ng4 {[%clk 0:01:51.4]}
19... Bxh2+ {[%clk 0:00:44.9]} 20. Ngxh2 {[%clk 0:01:52.2]} 20... e5 {[%clk
0:00:32.4]} 21. g4 {[%clk 0:01:49.6]} 21... Nf4 {[%clk 0:00:30.9]} 22. gxf5
{[%clk 0:01:47.7]} 22... Nxh3+ {[%clk 0:00:30.9]} 23. Kh1 {[%clk 0:01:45.6]}
23... Qf7 {[%clk 0:00:29.2]} 24. Ng1 {[%clk 0:01:38.7]} 24... Nf4 {[%clk
0:00:27.3]} 25. Ne2 {[%clk 0:01:33]} 25... Nh3 {[%clk 0:00:19.9]} 26. Ng1 {[%clk
0:01:33.1]} 26... Ng5 {[%clk 0:00:16.9]} 27. Qe3 {[%clk 0:01:26.8]} 27... d4
{[%clk 0:00:16.3]} 28. Qg3 {[%clk 0:01:23.3]} 28... e4 {[%clk 0:00:14.2]} 29.
Nh3 {[%clk 0:01:18.8]} 29... exd3 {[%clk 0:00:11.3]} 30. Nxg5 {[%clk 0:01:19.3]}
30... fxg5 {[%clk 0:00:11.3]} 31. Qxd3 {[%clk 0:01:19.9]} 31... Qd5+ {[%clk
0:00:09.6]} 32. Qf3 {[%clk 0:01:12.6]} 32... Rxf5 {[%clk 0:00:09.2]} 33. Qxd5+
{[%clk 0:01:12.6]} 33... Rxd5 {[%clk 0:00:08.6]} 34. Kg2 {[%clk 0:01:11.4]}
34... d3 {[%clk 0:00:07.4]} 35. Nf3 {[%clk 0:01:01.6]} 35... Rd7 {[%clk
0:00:05.2]} 36. Nd2 {[%clk 0:00:58.9]} 36... h5 {[%clk 0:00:04.5]} 37. Rc3
{[%clk 0:00:59.3]} 37... g4 {[%clk 0:00:03.8]} 38. f3 {[%clk 0:00:45.5]} 38...
gxf3+ {[%clk 0:00:03]} 39. Kxf3 {[%clk 0:00:46.2]} 39... Kf7 {[%clk 0:00:03.6]}
40. Kf4 {[%clk 0:00:43.3]} 40... Kf6 {[%clk 0:00:03.1]} 41. Ke4 {[%clk
0:00:42.4]} 41... g5 {[%clk 0:00:02.4]} 42. Rxd3 {[%clk 0:00:42.1]} 42... Rxd3
{[%clk 0:00:02.2]} 43. Kxd3 {[%clk 0:00:42.3]} 43... Kf5 {[%clk 0:00:02.7]} 44.
Ke3 {[%clk 0:00:42.9]} 44... g4 {[%clk 0:00:02.5]} 45. Nc4 {[%clk 0:00:35.6]}
45... h4 {[%clk 0:00:02.5]} 46. Nd6+ {[%clk 0:00:33.8]} 46... Ke5 {[%clk
0:00:02.7]} 47. Nxb7 {[%clk 0:00:33.4]} 47... h3 {[%clk 0:00:01.5]} 48. Kf2
{[%clk 0:00:31.5]} 48... Kf4 {[%clk 0:00:01.5]} 49. Nc5 {[%clk 0:00:30.9]} 49...
g3+ {[%clk 0:00:01.8]} 50. Kg1 {[%clk 0:00:31.3]} 50... Kf3 {[%clk 0:00:02]} 51.
Nd3 {[%clk 0:00:20.4]} 51... Ke3 {[%clk 0:00:02.1]} 52. Ne5 {[%clk 0:00:16.8]}
52... Ke2 {[%clk 0:00:02]} 53. b4 {[%clk 0:00:10.8]} 53... h2+ {[%clk
0:00:01.4]} 54. Kg2 {[%clk 0:00:10.6]} 54... h1=Q+ {[%clk 0:00:01.2]} 55. Kxh1
{[%clk 0:00:10.8]} 55... Kf1 {[%clk 0:00:01.7]} 56. Nf3 {[%clk 0:00:07.9]} 56...
Kf2 {[%clk 0:00:02]} 57. Ng1 {[%clk 0:00:07.6]} 57... g2+ {[%clk 0:00:01.7]} 58.
Kh2 {[%clk 0:00:08.1]} 58... Kf1 {[%clk 0:00:01.9]} 59. a4 {[%clk 0:00:08.2]}
59... Kf2 {[%clk 0:00:01.6]} 60. b5 {[%clk 0:00:08.5]} 60... Ke3 {[%clk
0:00:02.2]} 61. a5 {[%clk 0:00:09.2]} 61... Kd4 {[%clk 0:00:02.7]} 62. b6 {[%clk
0:00:09.7]} 62... axb6 {[%clk 0:00:03.2]} 63. axb6 {[%clk 0:00:10.3]} 63... Kc5
{[%clk 0:00:04]} 64. b7 {[%clk 0:00:11]} 1-0

[Event "*** Titled Tuesday Blitz"]
[Site "Chess.com"]
[Date "2020.05.19"]
[Round "7"]
[White "MariaFominykh"]
[Black "CakeinSpace2002"]
[Result "1/2-1/2"]
[WhiteElo "2333"]
[BlackElo "2221"]
[TimeControl "180+1"]
[EndTime "13:21:57 PDT"]
[Termination "Game drawn by repetition"]

1. d4 {[%clk 0:03:00.9]} 1... Nf6 {[%clk 0:02:56.5]} 2. c4 {[%clk 0:02:59.6]}
2... c5 {[%clk 0:02:55.4]} 3. d5 {[%clk 0:02:58.7]} 3... b5 {[%clk 0:02:55.6]}
4. cxb5 {[%clk 0:02:58.8]} 4... a6 {[%clk 0:02:55.5]} 5. b6 {[%clk 0:02:59.1]}
5... Qxb6 {[%clk 0:02:54.4]} 6. Nc3 {[%clk 0:02:58.1]} 6... g6 {[%clk
0:02:54.8]} 7. Nf3 {[%clk 0:02:57.9]} 7... d6 {[%clk 0:02:54.9]} 8. e4 {[%clk
0:02:58]} 8... Bg4 {[%clk 0:02:53.6]} 9. Be2 {[%clk 0:02:57.9]} 9... Bxf3 {[%clk
0:02:53.4]} 10. Bxf3 {[%clk 0:02:57.4]} 10... Bg7 {[%clk 0:02:54.3]} 11. O-O
{[%clk 0:02:56.8]} 11... O-O {[%clk 0:02:53.9]} 12. h3 {[%clk 0:02:49.9]} 12...
Nfd7 {[%clk 0:02:49.3]} 13. Be2 {[%clk 0:02:48.8]} 13... Qb4 {[%clk 0:02:31.2]}
14. a3 {[%clk 0:02:34.9]} 14... Qd4 {[%clk 0:02:27.5]} 15. Be3 {[%clk
0:02:29.2]} 15... Qxd1 {[%clk 0:02:25]} 16. Rfxd1 {[%clk 0:02:25.6]} 16... a5
{[%clk 0:02:23.9]} 17. Na4 {[%clk 0:02:14.3]} 17... Na6 {[%clk 0:02:05.9]} 18.
Bb5 {[%clk 0:02:13.4]} 18... Nf6 {[%clk 0:02:05.5]} 19. f3 {[%clk 0:01:53.8]}
19... Nc7 {[%clk 0:01:57.7]} 20. Bc6 {[%clk 0:01:49.9]} 20... Ra7 {[%clk
0:01:56.3]} 21. b4 {[%clk 0:01:45.6]} 21... axb4 {[%clk 0:01:23.3]} 22. axb4
{[%clk 0:01:44.7]} 22... Na6 {[%clk 0:01:23.1]} 23. bxc5 {[%clk 0:01:15.5]}
23... Nxc5 {[%clk 0:01:12.8]} 24. Nxc5 {[%clk 0:01:15.5]} 24... Rxa1 {[%clk
0:01:12.7]} 25. Rxa1 {[%clk 0:01:15.7]} 25... dxc5 {[%clk 0:01:12.7]} 26. Rc1
{[%clk 0:01:10]} 26... Ne8 {[%clk 0:01:09.2]} 27. Bxc5 {[%clk 0:01:08.5]} 27...
Nd6 {[%clk 0:01:09]} 28. Rb1 {[%clk 0:00:59.4]} 28... Rc8 {[%clk 0:01:00.7]} 29.
Ba7 {[%clk 0:00:45.2]} 29... Be5 {[%clk 0:00:54.2]} 30. Kf1 {[%clk 0:00:33.4]}
30... f5 {[%clk 0:00:53.2]} 31. exf5 {[%clk 0:00:29.3]} 31... Nxf5 {[%clk
0:00:51.9]} 32. Re1 {[%clk 0:00:19.7]} 32... Bd6 {[%clk 0:00:49.4]} 33. g4
{[%clk 0:00:18]} 33... Ng7 {[%clk 0:00:44.1]} 34. Rb1 {[%clk 0:00:16.5]} 34...
Ne8 {[%clk 0:00:36.2]} 35. Bd4 {[%clk 0:00:14.2]} 35... Nf6 {[%clk 0:00:33.9]}
36. g5 {[%clk 0:00:10.8]} 36... Nh5 {[%clk 0:00:32.4]} 37. Bd7 {[%clk
0:00:11.4]} 37... Rd8 {[%clk 0:00:32.1]} 38. Be6+ {[%clk 0:00:11.6]} 38... Kf8
{[%clk 0:00:32.2]} 39. h4 {[%clk 0:00:11.1]} 39... Nf4 {[%clk 0:00:30.9]} 40.
Rc1 {[%clk 0:00:10.7]} 40... Rb8 {[%clk 0:00:29.1]} 41. Rc8+ {[%clk 0:00:09.9]}
41... Rxc8 {[%clk 0:00:28.8]} 42. Bxc8 {[%clk 0:00:10.8]} 42... Nxd5 {[%clk
0:00:25.6]} 43. Be6 {[%clk 0:00:10.4]} 43... Nf4 {[%clk 0:00:25]} 44. Bb3 {[%clk
0:00:10.3]} 44... e5 {[%clk 0:00:21.8]} 45. Bb6 {[%clk 0:00:09.3]} 45... Nd3
{[%clk 0:00:18.5]} 46. Kg2 {[%clk 0:00:07.9]} 46... Nc5 {[%clk 0:00:18.3]} 47.
Bd5 {[%clk 0:00:07.6]} 47... Nd7 {[%clk 0:00:18]} 48. Be3 {[%clk 0:00:06]} 48...
Ke7 {[%clk 0:00:17.6]} 49. Bd2 {[%clk 0:00:06.5]} 49... Nf8 {[%clk 0:00:17.6]}
50. Be3 {[%clk 0:00:06.7]} 50... Ke8 {[%clk 0:00:17.1]} 51. Bg8 {[%clk
0:00:06.2]} 51... Ke7 {[%clk 0:00:17.1]} 52. h5 {[%clk 0:00:05.5]} 52... gxh5
{[%clk 0:00:16.9]} 53. Kh3 {[%clk 0:00:05.7]} 53... Ke8 {[%clk 0:00:14.3]} 54.
Kh4 {[%clk 0:00:05.6]} 54... Ng6+ {[%clk 0:00:14.1]} 55. Kxh5 {[%clk 0:00:05.8]}
55... Nf4+ {[%clk 0:00:14.3]} 56. Bxf4 {[%clk 0:00:05.1]} 56... exf4 {[%clk
0:00:14.3]} 57. Bxh7 {[%clk 0:00:06]} 57... Kf8 {[%clk 0:00:14.6]} 58. Be4
{[%clk 0:00:06.7]} 58... Kg7 {[%clk 0:00:14.8]} 59. g6 {[%clk 0:00:07.5]} 59...
Be5 {[%clk 0:00:15]} 60. Kg4 {[%clk 0:00:08.1]} 60... Bd6 {[%clk 0:00:15.1]} 61.
Kf5 {[%clk 0:00:08.6]} 61... Bc7 {[%clk 0:00:15.5]} 62. Ke6 {[%clk 0:00:08.7]}
62... Bb8 {[%clk 0:00:15.7]} 63. Kd5 {[%clk 0:00:08.7]} 63... Bc7 {[%clk
0:00:15.7]} 64. Ke6 {[%clk 0:00:09.3]} 64... Bb8 {[%clk 0:00:15.8]} 65. Kf5
{[%clk 0:00:09.5]} 65... Bc7 {[%clk 0:00:16]} 66. Ke6 {[%clk 0:00:09.8]} 1/2-1/2

[Event "*** Titled Tuesday Blitz"]
[Site "Chess.com"]
[Date "2020.05.19"]
[Round "7"]
[White "VaKukl"]
[Black "DraG0s3L"]
[Result "1-0"]
[WhiteElo "2384"]
[BlackElo "2503"]
[TimeControl "180+1"]
[EndTime "13:22:01 PDT"]
[Termination "VaKukl won by resignation"]

1. e4 {[%clk 0:03:00.9]} 1... e6 {[%clk 0:02:59.9]} 2. d4 {[%clk 0:03:00.4]}
2... d5 {[%clk 0:03:00.5]} 3. Nd2 {[%clk 0:03:00.5]} 3... c5 {[%clk 0:03:00.7]}
4. exd5 {[%clk 0:03:00.1]} 4... exd5 {[%clk 0:03:01.2]} 5. Ngf3 {[%clk
0:02:58.7]} 5... Nc6 {[%clk 0:03:01.5]} 6. Bb5 {[%clk 0:02:58.6]} 6... Qe7+
{[%clk 0:03:02]} 7. Qe2 {[%clk 0:02:57.8]} 7... cxd4 {[%clk 0:03:01.4]} 8. Qxe7+
{[%clk 0:02:51.5]} 8... Bxe7 {[%clk 0:03:00.6]} 9. O-O {[%clk 0:02:51]} 9... Bf6
{[%clk 0:02:56.7]} 10. Nb3 {[%clk 0:02:42.8]} 10... Bd7 {[%clk 0:02:56.7]} 11.
Re1+ {[%clk 0:02:37.2]} 11... Nge7 {[%clk 0:02:56]} 12. Bg5 {[%clk 0:02:36.8]}
12... Bxg5 {[%clk 0:02:44.5]} 13. Nxg5 {[%clk 0:02:36.8]} 13... f6 {[%clk
0:02:03.8]} 14. Nf3 {[%clk 0:02:29.4]} 14... Kf7 {[%clk 0:02:02.4]} 15. Nbxd4
{[%clk 0:02:24.2]} 15... a6 {[%clk 0:02:00.6]} 16. Bd3 {[%clk 0:02:14]} 16...
Ng6 {[%clk 0:01:54.3]} 17. g3 {[%clk 0:01:59.7]} 17... Nge5 {[%clk 0:01:50.1]}
18. Kg2 {[%clk 0:01:54.1]} 18... Nxd3 {[%clk 0:01:45.1]} 19. cxd3 {[%clk
0:01:52]} 19... Rhe8 {[%clk 0:01:45.1]} 20. Nxc6 {[%clk 0:01:47.2]} 20... Bxc6
{[%clk 0:01:39.7]} 21. Nd4 {[%clk 0:01:45.2]} 21... Bd7 {[%clk 0:01:38.4]} 22.
Rxe8 {[%clk 0:01:38.6]} 22... Rxe8 {[%clk 0:01:34.9]} 23. Rc1 {[%clk 0:01:38.6]}
23... Rc8 {[%clk 0:01:25.9]} 24. Rxc8 {[%clk 0:01:38.2]} 24... Bxc8 {[%clk
0:01:26.8]} 25. Kf3 {[%clk 0:01:38.6]} 25... g6 {[%clk 0:01:25.8]} 26. Ke3
{[%clk 0:01:38.3]} 26... Ke7 {[%clk 0:01:25.8]} 27. Nb3 {[%clk 0:01:35]} 27...
Kd6 {[%clk 0:01:25.1]} 28. Kd4 {[%clk 0:01:35]} 28... b6 {[%clk 0:01:23.5]} 29.
Nd2 {[%clk 0:01:29.1]} 29... Bg4 {[%clk 0:01:22]} 30. Nf1 {[%clk 0:01:27.7]}
30... Be6 {[%clk 0:01:08.1]} 31. Ne3 {[%clk 0:01:27.6]} 31... Bf7 {[%clk
0:01:08.6]} 32. b4 {[%clk 0:01:26.6]} 32... Be6 {[%clk 0:01:08.1]} 33. Nd1
{[%clk 0:01:22.7]} 33... a5 {[%clk 0:01:06.1]} 34. bxa5 {[%clk 0:01:20.6]} 34...
bxa5 {[%clk 0:01:07]} 35. Nc3 {[%clk 0:01:19.9]} 35... Bf7 {[%clk 0:01:07.2]}
36. Na4 {[%clk 0:01:16.7]} 36... Be8 {[%clk 0:01:05.2]} 37. Nc5 {[%clk
0:01:16.2]} 37... Bc6 {[%clk 0:01:04.3]} 38. Nb3 {[%clk 0:01:12.8]} 38... a4
{[%clk 0:01:04.6]} 39. Nc5 {[%clk 0:01:12.8]} 39... Bb5 {[%clk 0:00:59.9]} 40.
a3 {[%clk 0:01:09.8]} 40... Bc6 {[%clk 0:00:57.5]} 41. Na6 {[%clk 0:01:09.5]}
41... Bb5 {[%clk 0:00:53.5]} 42. Nb4 {[%clk 0:01:08.7]} 42... Bc6 {[%clk
0:00:54.2]} 43. Kc3 {[%clk 0:01:04.6]} 43... Bb5 {[%clk 0:00:49.4]} 44. Nc2
{[%clk 0:00:57.3]} 44... Ke5 {[%clk 0:00:40.5]} 45. Kb4 {[%clk 0:00:55.9]} 45...
Bxd3 {[%clk 0:00:40]} 46. Ne1 {[%clk 0:00:44.9]} 46... Be4 {[%clk 0:00:40.3]}
47. Kxa4 {[%clk 0:00:45]} 47... Kd4 {[%clk 0:00:40.7]} 48. Kb4 {[%clk
0:00:44.7]} 48... g5 {[%clk 0:00:37.2]} 49. a4 {[%clk 0:00:44.7]} 49... g4
{[%clk 0:00:37.7]} 50. a5 {[%clk 0:00:44.9]} 50... Ke5 {[%clk 0:00:37.2]} 51. a6
{[%clk 0:00:43.2]} 51... d4 {[%clk 0:00:36.4]} 52. a7 {[%clk 0:00:42.9]} 52...
h5 {[%clk 0:00:34.8]} 53. Kc4 {[%clk 0:00:42.5]} 53... Bd5+ {[%clk 0:00:34.6]}
54. Kd3 {[%clk 0:00:41.7]} 54... Be4+ {[%clk 0:00:35]} 55. Kd2 {[%clk
0:00:41.8]} 55... Ba8 {[%clk 0:00:34.5]} 56. Nd3+ {[%clk 0:00:41.7]} 56... Ke4
{[%clk 0:00:35]} 57. Nf4 {[%clk 0:00:40.4]} 57... Kf3 {[%clk 0:00:33.9]} 58.
Nxh5 {[%clk 0:00:40.3]} 58... f5 {[%clk 0:00:32.3]} 59. Ng7 {[%clk 0:00:37.3]}
59... f4 {[%clk 0:00:29.6]} 60. Kd3 {[%clk 0:00:25.6]} 60... fxg3 {[%clk
0:00:25.5]} 61. fxg3 {[%clk 0:00:24]} 61... Kg2 {[%clk 0:00:24.3]} 62. Kxd4
{[%clk 0:00:23.6]} 62... Kxh2 {[%clk 0:00:24.1]} 63. Nf5 {[%clk 0:00:22.5]}
63... Kg2 {[%clk 0:00:22.8]} 64. Ke5 {[%clk 0:00:22.6]} 64... Kf3 {[%clk
0:00:22.3]} 65. Kf6 {[%clk 0:00:22.4]} 65... Bb7 {[%clk 0:00:21.9]} 66. Kg5
{[%clk 0:00:21.9]} 66... Ba8 {[%clk 0:00:21.3]} 67. Kh4 {[%clk 0:00:21.8]} 67...
Bb7 {[%clk 0:00:21]} 68. Nd6 {[%clk 0:00:21.7]} 68... Ba8 {[%clk 0:00:21]} 69.
Nc8 {[%clk 0:00:21.8]} 69... Bb7 {[%clk 0:00:20.5]} 70. Nb6 {[%clk 0:00:22.7]}
70... Kg2 {[%clk 0:00:19.9]} 71. a8=Q {[%clk 0:00:22.1]} 71... Bxa8 {[%clk
0:00:20.6]} 72. Nxa8 {[%clk 0:00:22.3]} 72... Kf3 {[%clk 0:00:21.5]} 73. Nc7
{[%clk 0:00:22.7]} 73... Ke4 {[%clk 0:00:22.1]} 74. Kxg4 {[%clk 0:00:23.2]}
74... Ke5 {[%clk 0:00:23]} 75. Kg5 {[%clk 0:00:23.3]} 75... Kd6 {[%clk
0:00:22.7]} 76. Nb5+ {[%clk 0:00:23.3]} 76... Ke6 {[%clk 0:00:23.1]} 77. Kg6
{[%clk 0:00:23.5]} 77... Ke7 {[%clk 0:00:24]} 78. g4 {[%clk 0:00:23.7]} 78...
Kf8 {[%clk 0:00:24.9]} 79. g5 {[%clk 0:00:22]} 79... Kg8 {[%clk 0:00:25.8]} 80.
Kf6 {[%clk 0:00:22.2]} 80... Kh8 {[%clk 0:00:26.7]} 81. g6 {[%clk 0:00:22.5]}
81... Kg8 {[%clk 0:00:27.6]} 82. g7 {[%clk 0:00:22.8]} 82... Kh7 {[%clk
0:00:28.5]} 83. Kf7 {[%clk 0:00:23.2]} 83... Kh6 {[%clk 0:00:29.4]} 1-0

[Event "*** Titled Tuesday Blitz"]
[Site "Chess.com"]
[Date "2020.05.19"]
[Round "7"]
[White "DaggiGretarsson"]
[Black "olksuna"]
[Result "1/2-1/2"]
[WhiteElo "2617"]
[BlackElo "2582"]
[TimeControl "180+1"]
[EndTime "13:22:04 PDT"]
[Termination "Game drawn by agreement"]

1. d4 {[%clk 0:02:58.9]} 1... Nf6 {[%clk 0:03:00.3]} 2. c4 {[%clk 0:02:58.5]}
2... g6 {[%clk 0:03:00.8]} 3. Nc3 {[%clk 0:02:57.9]} 3... d5 {[%clk 0:03:01.4]}
4. Bf4 {[%clk 0:02:57]} 4... Bg7 {[%clk 0:03:00.8]} 5. e3 {[%clk 0:02:56.9]}
5... O-O {[%clk 0:02:59.5]} 6. Rc1 {[%clk 0:02:56.2]} 6... dxc4 {[%clk
0:02:58.4]} 7. Bxc4 {[%clk 0:02:55]} 7... Nbd7 {[%clk 0:02:58.9]} 8. Be2 {[%clk
0:02:28]} 8... c5 {[%clk 0:02:52.3]} 9. d5 {[%clk 0:02:27.1]} 9... Nb6 {[%clk
0:02:49]} 10. e4 {[%clk 0:02:26.6]} 10... e6 {[%clk 0:02:45.4]} 11. d6 {[%clk
0:02:13.8]} 11... e5 {[%clk 0:02:44.5]} 12. Bxe5 {[%clk 0:02:12.9]} 12... Re8
{[%clk 0:02:44.7]} 13. Bxf6 {[%clk 0:02:11.1]} 13... Bxf6 {[%clk 0:02:29.7]} 14.
Nf3 {[%clk 0:02:05.9]} 14... Bg4 {[%clk 0:01:47.8]} 15. O-O {[%clk 0:02:04.6]}
15... a6 {[%clk 0:01:47.7]} 16. e5 {[%clk 0:01:50.2]} 16... Bxf3 {[%clk
0:01:28.7]} 17. Bxf3 {[%clk 0:01:49.9]} 17... Bxe5 {[%clk 0:01:17.7]} 18. Bxb7
{[%clk 0:01:48.6]} 18... Ra7 {[%clk 0:01:16.4]} 19. Bc6 {[%clk 0:01:44]} 19...
Re6 {[%clk 0:01:16.2]} 20. Ne4 {[%clk 0:01:41.6]} 20... Bxd6 {[%clk 0:01:07.6]}
21. Nxc5 {[%clk 0:01:24.2]} 21... Bxh2+ {[%clk 0:01:00]} 22. Kxh2 {[%clk
0:01:23.9]} 22... Qc7+ {[%clk 0:00:56.4]} 23. Kg1 {[%clk 0:01:22]} 23... Rxc6
{[%clk 0:00:57.3]} 24. b4 {[%clk 0:01:19.5]} 24... a5 {[%clk 0:00:55.3]} 25. a3
{[%clk 0:01:19.9]} 25... axb4 {[%clk 0:00:52.9]} 26. axb4 {[%clk 0:01:20.1]}
26... Na4 {[%clk 0:00:51.3]} 27. Ne4 {[%clk 0:00:46.8]} 27... Rxc1 {[%clk
0:00:48.2]} 28. Qxc1 {[%clk 0:00:46.8]} 28... Qxc1 {[%clk 0:00:48.4]} 29. Rxc1
{[%clk 0:00:47.1]} 29... Rb7 {[%clk 0:00:48.3]} 30. Rc4 {[%clk 0:00:47]} 30...
Kf8 {[%clk 0:00:43]} 31. g4 {[%clk 0:00:43.9]} 31... h6 {[%clk 0:00:40.1]} 32.
Rd4 {[%clk 0:00:40.7]} 32... Ke7 {[%clk 0:00:37.7]} 33. Kg2 {[%clk 0:00:39.8]}
33... Rb5 {[%clk 0:00:33.8]} 34. Kf3 {[%clk 0:00:36.6]} 34... Nb6 {[%clk
0:00:31]} 35. Nc3 {[%clk 0:00:35.1]} 35... Re5 {[%clk 0:00:28.5]} 36. b5 {[%clk
0:00:33.2]} 36... Rc5 {[%clk 0:00:25.8]} 37. Rd3 {[%clk 0:00:30.3]} 37... Rc4
{[%clk 0:00:24.8]} 38. Ne4 {[%clk 0:00:25.5]} 38... Rb4 {[%clk 0:00:23.1]} 39.
Nd6 {[%clk 0:00:25.3]} 39... Nd7 {[%clk 0:00:20.6]} 40. Nc8+ {[%clk 0:00:24.2]}
40... Ke8 {[%clk 0:00:16.8]} 41. Nd6+ {[%clk 0:00:23.4]} 41... Ke7 {[%clk
0:00:17.2]} 42. Nc8+ {[%clk 0:00:22.3]} 42... Ke8 {[%clk 0:00:16]} 43. Re3+
{[%clk 0:00:21.8]} 43... Kf8 {[%clk 0:00:14]} 44. Nd6 {[%clk 0:00:20.5]} 44...
Nb6 {[%clk 0:00:11.6]} 45. Rc3 {[%clk 0:00:18.2]} 45... Nd5 {[%clk 0:00:10.7]}
46. Rc5 {[%clk 0:00:15.5]} 46... Rb3+ {[%clk 0:00:10.3]} 47. Ke4 {[%clk
0:00:13.5]} 47... Nf6+ {[%clk 0:00:10.3]} 48. Kd4 {[%clk 0:00:11.9]} 48... Nxg4
{[%clk 0:00:10.2]} 49. Kc4 {[%clk 0:00:11.1]} 49... Rb1 {[%clk 0:00:09.6]} 50.
f3 {[%clk 0:00:10.8]} 50... Ne3+ {[%clk 0:00:09]} 51. Kd3 {[%clk 0:00:09.9]}
51... Ng2 {[%clk 0:00:07.6]} 52. Nc4 {[%clk 0:00:09.4]} 52... Nf4+ {[%clk
0:00:07.6]} 53. Ke4 {[%clk 0:00:09.4]} 53... g5 {[%clk 0:00:07]} 54. b6 {[%clk
0:00:08.8]} 54... h5 {[%clk 0:00:06.9]} 55. Rxg5 {[%clk 0:00:07.2]} 55... Rb4
{[%clk 0:00:04.3]} 56. Kxf4 {[%clk 0:00:03.1]} 56... Rxc4+ {[%clk 0:00:04.5]}
57. Kf5 {[%clk 0:00:03]} 57... Rb4 {[%clk 0:00:02.5]} 58. Rxh5 {[%clk
0:00:03.2]} 58... Rb5+ {[%clk 0:00:02]} 59. Kg4 {[%clk 0:00:02.8]} 59... Rxb6
{[%clk 0:00:02.2]} 60. Re5 {[%clk 0:00:03.2]} 60... Rg6+ {[%clk 0:00:02]} 61.
Kf4 {[%clk 0:00:03.3]} 61... Kg7 {[%clk 0:00:02.9]} 62. Ke3 {[%clk 0:00:03.4]}
62... Rf6 {[%clk 0:00:03.8]} 63. Re4 {[%clk 0:00:04]} 63... Re6 {[%clk
0:00:03.8]} 64. Kf2 {[%clk 0:00:02.6]} 64... Kf6 {[%clk 0:00:02.9]} 65. Rf4+
{[%clk 0:00:02.3]} 65... Ke7 {[%clk 0:00:02.9]} 66. Rg4 {[%clk 0:00:02.6]} 66...
Rf6 {[%clk 0:00:03.8]} 67. Rc4 {[%clk 0:00:03]} 67... Re6 {[%clk 0:00:04.7]} 68.
Kg3 {[%clk 0:00:03.2]} 68... Rf6 {[%clk 0:00:05.6]} 69. Kg4 {[%clk 0:00:03.4]}
69... Re6 {[%clk 0:00:06.5]} 70. Kg3 {[%clk 0:00:03.8]} 70... Rg6+ {[%clk
0:00:06.7]} 71. Kf2 {[%clk 0:00:03.6]} 71... Re6 {[%clk 0:00:05.3]} 1/2-1/2